bitfinex-derivatives/quotes_SOLF0:USTF0_20250318
["timestamp","ask_amount","ask_price","bid_price","bid_amount"]
[1742268877609,31.8,123.94,123.9,278.38]
[1742268878011,8.0706,123.92,123.9,278.38]
[1742268878211,8.0706,123.92,123.91,0.06184765]
[1742268879010,8.57891912,123.93,123.9,278.38]
[1742268880119,8.57891912,123.93,123.9,278.44152989]
[1742268880416,10.92269379,123.92,123.9,278.44152989]
[1742268880617,39.871,123.91,123.9,278.44152989]
[1742268881213,45.55330429,123.91,123.9,0.06152989]
[1742268881620,45.56090365,123.91,123.9,0.06152989]
[1742268881821,50.81159058,123.91,123.9,0.06152989]
[1742268883020,42.74059058,123.91,123.9,0.06152989]
[1742268883713,42.76277689,123.91,123.9,0.06152989]
[1742268886219,10.96277689,123.91,123.9,0.06152989]
[1742268886521,10.97942533,123.91,123.9,8.13312989]
[1742268886726,10.98612181,123.91,123.9,8.13312989]
[1742268887024,5.25068693,123.91,123.9,8.13312989]
[1742268887216,0.05941912,123.93,123.9,8.13312989]
[1742268887418,5.67362195,123.92,123.9,8.13312989]
[1742268887617,0.05941912,123.93,123.9,8.13312989]
[1742268887822,10.97397879,123.92,123.9,0.06152989]
[1742268888022,5.30018169,123.92,123.9,0.06152989]
[1742268888223,0.05941912,123.93,123.9,0.06152989]
[1742268888527,5.67954392,123.92,123.9,0.06152989]
[1742268888723,5.67954392,123.91,123.9,0.06152989]
[1742268888928,10.98432262,123.91,123.9,0.06152989]
[1742268889824,10.9870596,123.91,123.9,0.06152989]
[1742268890327,0.05941912,123.93,123.9,0.06152989]
[1742268890525,0.05941912,123.93,123.91,48.49583045]
[1742268890720,0.05941912,123.93,123.92,286.5103]
[1742268890920,5.74637661,123.93,123.92,286.5103]
[1742268891228,8.0674,123.97,123.92,278.44]
[1742268891428,4.12911209,123.96,123.93,16.95583045]
[1742268891623,8.0674,123.97,123.93,25.02493045]
[1742268891826,4.12907161,123.96,123.93,16.95583045]
[1742268892021,31.5,124.0,123.94,31.5]
[1742268892328,8.0677,123.97,123.96,0.05568724]
[1742268892527,4.1314394,123.97,123.96,0.05568724]
[1742268893430,4.13402877,123.97,123.96,0.05568724]
[1742268893626,0.0563837,123.98,123.96,0.05568724]
[1742268894025,0.0563837,123.98,123.96,8.12328724]
[1742268895030,0.0563837,123.98,123.96,0.05568724]
[1742268896929,0.0563837,123.98,123.96,8.12338724]
[1742268898133,0.0563837,123.98,123.96,0.05568724]
[1742268898533,0.0563837,123.98,123.96,8.12328724]
[1742268899539,0.0563837,123.98,123.97,8.0671]
[1742268899843,0.0563837,123.98,123.97,56.32293045]
[1742268900933,0.0563837,123.98,123.97,48.25583045]
[1742268901539,0.0563837,123.98,123.97,56.32293045]
[1742268902442,8.0641,124.02,123.98,8.0661]
[1742268902642,8.0641,124.02,123.99,278.34]
[1742268903434,8.0635,124.03,123.99,278.34]
[1742268903638,0.05787479,124.02,123.99,278.39621729]
[1742268903937,0.05787479,124.02,123.99,295.35204774]
[1742268904940,31.18,124.01,123.99,278.39621729]
[1742268905442,13.31606465,124.0,123.99,278.39621729]
[1742268905745,13.31606465,124.0,123.95,278.32]
[1742268905746,9.37846711,124.0,123.95,278.32]
[1742268905944,13.52676465,124.0,123.95,278.32]
[1742268906139,5.25096465,123.99,123.95,278.32]
[1742268906341,31.2,123.98,123.95,278.32]
[1742268906537,31.2,123.98,123.92,11.11416289]
[1742268906847,0.05442863,123.96,123.94,0.05426232]
[1742268907041,39.2884,123.95,123.94,0.05426232]
[1742268907437,36.47096465,123.95,123.94,0.05426232]
[1742268908137,5.25096465,123.95,123.94,0.05426232]
[1742268908841,0.05442863,123.96,123.94,0.05426232]
[1742268910048,5.24645221,123.95,123.94,0.05426232]
[1742268912344,0.05442863,123.96,123.94,39.30326232]
[1742268912648,0.05442863,123.96,123.94,309.57426232]
[1742268912949,0.05442863,123.96,123.94,278.39426232]
[1742268913444,0.05442863,123.96,123.94,0.05426232]
[1742268913840,8.12232863,123.96,123.94,0.05426232]
[1742268914044,5.24753617,123.95,123.94,0.05426232]
[1742268915038,0.05442863,123.96,123.94,0.05426232]
[1742268916046,31.14,123.95,123.94,0.05426232]
[1742268916244,36.38580964,123.95,123.94,0.05426232]
[1742268916449,44.45420964,123.95,123.94,0.05426232]
[1742268918051,36.38580964,123.95,123.94,0.05426232]
[1742268918452,5.24580964,123.95,123.94,0.05426232]
[1742268919945,0.05442863,123.96,123.94,0.05426232]
[1742268920349,8.12222863,123.96,123.94,0.05426232]
[1742268920756,0.05442863,123.96,123.94,0.05426232]
[1742268920958,8.0684,123.95,123.94,0.05426232]
[1742268921255,0.05442863,123.96,123.94,0.05426232]
[1742268921854,8.12232863,123.96,123.94,0.05426232]
[1742268922357,0.05442863,123.96,123.94,0.05426232]
[1742268923258,0.05442863,123.96,123.94,10.59710567]
[1742268925048,0.05442863,123.96,123.94,0.05426232]
[1742268925654,8.12242863,123.96,123.94,0.05426232]
[1742268925958,0.05442863,123.96,123.94,0.05426232]
[1742268926151,0.05442863,123.96,123.94,8.12326232]
[1742268926556,0.05442863,123.96,123.94,0.05426232]
[1742268927454,0.05442863,123.96,123.94,10.59710567]
[1742268927652,0.05442863,123.96,123.95,30.94]
[1742268928056,4.13232552,124.0,123.96,8.0672]
[1742268928260,5.25951993,123.99,123.96,296.99004335]
[1742268928650,5.25951993,123.98,123.96,296.99004335]
[1742268929055,5.25951993,123.98,123.96,286.4472]
[1742268929258,5.31384197,123.98,123.96,286.50776994]
[1742268929451,0.05432204,123.98,123.96,286.50776994]
[1742268930656,0.05432204,123.98,123.97,8.0671]
[1742268930961,5.31688506,123.98,123.97,8.0671]
[1742268931162,0.05432204,123.98,123.97,8.0671]
[1742268931755,0.05432204,123.98,123.97,24.92795385]
[1742268932257,0.05432204,123.98,123.96,286.50796994]
[1742268933763,0.05432204,123.98,123.97,8.0671]
[1742268935563,0.05432204,123.98,123.96,278.44056994]
[1742268936566,0.05432204,123.98,123.97,8.0671]
[1742268937566,0.05432204,123.98,123.97,24.92795385]
[1742268938464,5.26360499,124.01,123.99,8.0653]
[1742268938665,12.6799,124.04,123.99,38.8053]
[1742268938865,4.1376341,124.03,123.99,30.74]
[1742268939064,30.74,124.06,123.99,47.60085385]
[1742268939362,9.3978592,124.05,123.99,47.60085385]
[1742268939563,0.06137955,124.04,124.01,0.05175903]
[1742268939764,5.32256581,124.04,124.02,278.3]
[1742268939962,5.32256581,124.04,124.02,309.04]
[1742268940164,0.06137955,124.04,124.02,309.04]
[1742268942867,0.06137955,124.04,124.02,278.3]
[1742268943166,8.0632,124.03,124.02,278.3]
[1742268943365,13.31425337,124.03,124.02,278.3]
[1742268943566,5.25105337,124.03,124.01,0.05175903]
[1742268943766,5.25105337,124.02,124.01,0.05175903]
[1742268944663,0.06137955,124.04,124.01,0.05175903]
[1742268945258,8.12417955,124.04,124.01,0.05175903]
[1742268945968,0.06137955,124.04,124.01,0.05175903]
[1742268946169,5.25032576,124.03,124.01,0.05175903]
[1742268946565,8.12447955,124.04,124.01,0.05175903]
[1742268946959,8.0633,124.03,124.01,0.05175903]
[1742268947763,0.06137955,124.04,124.01,0.05175903]
[1742268948461,0.06137955,124.04,124.01,8.11585903]
[1742268949072,0.06137955,124.04,124.02,8.0638]
[1742268949568,0.06137955,124.04,124.02,8.0635]
[1742268950372,0.06137955,124.04,124.02,316.8635]
[1742268950868,0.06137955,124.04,124.03,10.53015093]
[1742268951871,0.06137955,124.04,124.03,18.59335093]
[1742268952062,4.1601,124.08,124.03,10.53015093]
[1742268952267,4.3486,124.09,124.03,10.53015093]
[1742268952474,4.3486,124.09,124.05,10.53015093]
[1742268952669,5.24432478,124.08,124.05,41.07015093]
[1742268953173,0.05674916,124.08,124.05,41.12284089]
[1742268954778,0.05674916,124.08,124.05,49.18444089]
[1742268954975,0.05674916,124.08,124.05,41.12284089]
[1742268955779,8.11664916,124.08,124.05,41.12284089]
[1742268956283,0.05674916,124.08,124.05,30.59268996]
[1742268956483,0.05674916,124.08,124.06,10.53015093]
[1742268957094,0.05674916,124.08,124.06,14.72135093]
[1742268957293,34.7878,124.14,124.06,14.72135093]
[1742268957592,8.0587,124.1,124.08,10.53015093]
[1742268957793,30.48,124.11,124.08,278.16]
[1742268958100,8.0593,124.09,124.08,278.16]
[1742268958287,38.5593,124.09,124.08,278.16]
[1742268958487,30.5,124.09,124.07,0.06192578]
[1742268958791,8.06,124.08,124.07,0.06192578]
[1742268959289,42.83919617,124.09,124.07,0.06192578]
[1742268959687,34.77969617,124.09,124.07,0.06192578]
[1742268960691,34.73969617,124.09,124.07,0.06192578]
[1742268961092,0.03339617,124.09,124.08,10.53015093]
[1742268962491,0.03339617,124.09,124.07,0.06192578]
[1742268962796,30.49339617,124.09,124.05,278.12]
[1742268963191,8.0612,124.06,124.05,278.12]
[1742268963393,38.5412,124.06,124.01,312.6642]
[1742268963695,38.5412,124.06,124.02,27.38558093]
[1742268963895,0.06106505,124.05,124.03,0.05678491]
[1742268964396,30.52106505,124.05,124.03,0.05678491]
[1742268966600,30.42,124.08,124.04,10.53015093]
[1742268967096,4.2285,124.1,124.06,10.53015093]
[1742268967595,42.7075,124.1,124.06,18.59095093]
[1742268967796,0.03425691,124.09,124.07,0.0588619]
[1742268968995,0.03425691,124.09,124.08,10.53015093]
[1742268969195,5.2513435,124.11,124.08,10.53015093]
[1742268969697,30.42,124.12,124.08,10.53015093]
[1742268970699,8.0583,124.11,124.08,10.53015093]
[1742268971196,30.42,124.12,124.07,278.1788619]
[1742268971401,4.13009879,124.11,124.07,278.1788619]
[1742268971801,8.0599,124.08,124.07,0.0588619]
[1742268972101,30.4,124.08,124.07,0.0588619]
[1742268972501,35.65283726,124.08,124.07,0.0588619]
[1742268975301,30.34,124.1,124.07,0.0588619]
[1742268975498,30.34,124.1,124.08,10.53015093]
[1742268976203,30.34,124.12,124.09,8.0588]
[1742268976402,8.5593,124.13,124.1,10.53015093]
[1742268976603,38.9193,124.13,124.1,10.53015093]
[1742268977701,8.5593,124.13,124.1,10.53015093]
[1742268977998,34.7612,124.14,124.1,10.53015093]
[1742268978394,42.8175,124.14,124.1,10.53015093]
[1742268978607,34.7612,124.14,124.1,10.53015093]
[1742268978904,8.0568,124.13,124.1,10.53015093]
[1742268980206,8.0574,124.12,124.1,10.53015093]
[1742268980406,30.3,124.11,124.09,0.0583136]
[1742268980604,30.3,124.1,124.09,0.0583136]
[1742268981601,30.28,124.12,124.09,8.1175136]
[1742268981803,4.4529,124.13,124.1,10.53015093]
[1742268982002,34.7212,124.14,124.12,10.53015093]
[1742268982202,4.079,124.16,124.12,10.53015093]
[1742268982403,34.4189135,124.15,124.12,10.58256369]
[1742268982604,30.28,124.15,124.12,10.58256369]
[1742268982905,8.056,124.14,124.12,10.58256369]
[1742268983107,30.28,124.15,124.12,10.58256369]
[1742268983409,12.19531275,124.14,124.12,0.05241276]
[1742268983604,8.0564,124.14,124.12,0.05241276]
[1742268984101,38.3356,124.15,124.12,0.05241276]
[1742268984604,12.1339,124.16,124.12,10.58256369]
[1742268984801,34.35829754,124.15,124.12,10.58256369]
[1742268984996,30.22,124.15,124.12,10.58256369]
[1742268985508,30.22,124.15,124.12,18.63976369]
[1742268985711,12.1341,124.16,124.12,18.63976369]
[1742268986008,42.3541,124.16,124.12,18.63976369]
[1742268986506,34.503,124.17,124.14,10.53015093]
[1742268986705,4.4529,124.18,124.14,10.53015093]
[1742268986907,12.19040848,124.17,124.14,10.53015093]
[1742268987103,34.6529,124.18,124.15,0.05549918]
[1742268987304,4.13646987,124.17,124.15,0.05549918]
[1742268987508,4.13539822,124.16,124.15,0.05549918]
[1742268987707,8.0545,124.17,124.15,0.05549918]
[1742268987905,34.6529,124.18,124.15,0.05549918]
[1742268988101,4.13588775,124.17,124.15,0.05549918]
[1742268988709,8.0547,124.16,124.15,0.05549918]
[1742268989909,8.0544,124.17,124.15,0.05549918]
[1742268990111,34.6529,124.18,124.15,0.05549918]
[1742268990513,12.5064,124.18,124.15,0.05549918]
[1742268990910,8.0535,124.18,124.15,0.05549918]
[1742268991105,8.0542,124.17,124.15,0.05549918]
[1742268991305,4.0263,124.19,124.15,0.05549918]
[1742268991611,4.0263,124.19,124.16,18.58475093]
[1742268991807,4.0263,124.19,124.16,10.53015093]
[1742268992909,8.0541,124.17,124.16,10.53015093]
[1742268993615,4.0263,124.19,124.16,10.53015093]
[1742268995612,30.14,124.2,124.16,18.58435093]
[1742268996117,8.0522,124.2,124.16,18.58435093]
[1742268996413,8.0522,124.2,124.16,10.53015093]
[1742268997007,42.2957,124.21,124.18,10.53015093]
[1742268997413,30.1,124.21,124.18,10.58325413]
[1742268998910,8.0525,124.2,124.18,10.58325413]
[1742268999105,30.1,124.21,124.18,10.58325413]
[1742268999510,30.1,124.21,124.18,0.0531032]
[1742269000015,8.0528,124.19,124.18,0.0531032]
[1742269001118,8.0523,124.2,124.18,0.0531032]
[1742269001620,38.1518,124.21,124.18,10.58325413]
[1742269002311,8.0522,124.2,124.18,10.58325413]
[1742269002515,30.1,124.21,124.18,10.58325413]
[1742269002719,38.1518,124.21,124.18,10.58325413]
[1742269002915,30.1,124.21,124.18,10.58325413]
[1742269003116,30.1,124.21,124.2,6.72206349]
[1742269003606,38.1516,124.21,124.2,6.72206349]
[1742269005615,8.0521,124.2,124.19,6.72206349]
[1742269005818,30.1,124.21,124.18,6.77516669]
[1742269006018,30.1,124.21,124.19,6.72206349]
[1742269006515,8.0524,124.2,124.19,6.72206349]
[1742269007718,30.1,124.21,124.18,6.77516669]
[1742269009016,36.82206349,124.21,124.18,0.0531032]
[1742269009215,36.82206349,124.21,124.16,6.72206349]
[1742269009915,30.1,124.21,124.17,6.72206349]
[1742269010222,30.1,124.21,124.18,6.72206349]
[1742269010420,8.10442697,124.2,124.18,6.77408234]
[1742269010720,8.10442697,124.2,124.19,6.72206349]
[1742269011311,8.0528,124.19,124.18,0.05201885]
[1742269011523,0.05232697,124.2,124.16,6.72206349]
[1742269011721,8.0542,124.17,124.16,6.72206349]
[1742269011922,30.08,124.19,124.16,6.72206349]
[1742269012423,8.0537,124.18,124.16,6.72206349]
[1742269012621,8.0537,124.18,124.16,6.77852666]
[1742269013720,8.0541,124.17,124.16,6.77852666]
[1742269014621,8.0538,124.18,124.16,6.77852666]
[1742269015723,8.0541,124.17,124.16,6.77852666]
[1742269016317,38.1337,124.18,124.16,6.77852666]
[1742269016917,30.14212461,124.19,124.16,6.77852666]
[1742269017120,30.14212461,124.19,124.18,6.72206349]
[1742269019427,38.19492461,124.19,124.18,6.72206349]
[1742269019722,30.14212461,124.19,124.18,6.72206349]
[1742269021528,0.06212461,124.19,124.18,6.72206349]
[1742269022427,8.11492461,124.19,124.18,6.72206349]
[1742269023127,0.06212461,124.19,124.18,14.77546349]
[1742269023327,30.08,124.22,124.18,14.77546349]
[1742269023527,8.0511,124.22,124.21,6.72206349]
[1742269023829,12.1857796,124.22,124.21,6.72206349]
[1742269024729,38.17349744,124.23,124.21,6.72206349]
[1742269025131,30.12299744,124.23,124.21,6.72206349]
[1742269025331,8.0508,124.22,124.21,6.72206349]
[1742269025631,30.12299744,124.23,124.21,6.72206349]
[1742269026030,38.17349744,124.23,124.21,6.72206349]
[1742269026327,0.04299744,124.23,124.21,6.72206349]
[1742269026532,4.18402188,124.23,124.21,6.72206349]
[1742269026723,0.04299744,124.23,124.21,6.72206349]
[1742269026932,4.18479667,124.23,124.21,6.72206349]
[1742269027732,12.23499667,124.23,124.21,6.72206349]
[1742269027931,8.09319744,124.23,124.21,6.72206349]
[1742269028332,0.04299744,124.23,124.21,6.72206349]
[1742269028935,4.18759567,124.23,124.21,6.72206349]
[1742269029433,0.04299744,124.23,124.21,6.72206349]
[1742269029733,34.22521132,124.22,124.2,6.77810876]
[1742269029933,4.14521132,124.21,124.2,6.77810876]
[1742269030134,12.19671132,124.21,124.2,6.77810876]
[1742269032432,10.86727481,124.21,124.12,4.4501]
[1742269032735,6.72206349,124.19,124.14,6.72206349]
[1742269032935,34.22521132,124.18,124.15,6.72206349]
[1742269033132,4.14521132,124.17,124.15,6.72206349]
[1742269033333,4.14521132,124.16,124.15,6.72206349]
[1742269033830,12.19991132,124.16,124.15,6.72206349]
[1742269035437,4.14521132,124.16,124.15,6.72206349]
[1742269036232,0.06139962,124.17,124.15,6.72206349]
[1742269036441,8.11549962,124.17,124.15,6.72206349]
[1742269036639,0.06139962,124.17,124.15,6.72206349]
[1742269037138,8.11579962,124.17,124.15,6.72206349]
[1742269037338,0.06139962,124.17,124.15,6.72206349]
[1742269038537,8.11579962,124.17,124.16,6.72206349]
[1742269038737,12.26115589,124.17,124.16,6.72206349]
[1742269039334,8.11579962,124.17,124.16,6.72206349]
[1742269039536,12.26063029,124.17,124.16,6.72206349]
[1742269040440,8.0554,124.15,124.14,6.77623281]
[1742269040638,42.27942855,124.15,124.14,0.05416932]
[1742269041037,34.22402855,124.15,124.14,6.77623281]
[1742269041237,30.14139962,124.17,124.14,6.77623281]
[1742269041532,30.14139962,124.17,124.16,6.72206349]
[1742269041737,42.3396937,124.17,124.16,6.72206349]
[1742269042240,34.2851937,124.17,124.16,6.72206349]
[1742269042440,4.2051937,124.17,124.16,6.72206349]
[1742269043536,4.14379408,124.17,124.16,6.72206349]
[1742269043742,4.1383,124.21,124.16,6.72206349]
[1742269043945,4.1383,124.21,124.2,6.72206349]
[1742269044435,12.1901,124.21,124.2,6.72206349]
[1742269045041,38.16874308,124.22,124.2,6.72206349]
[1742269045238,30.11764308,124.22,124.2,6.72206349]
[1742269045840,0.03764308,124.22,124.2,6.72206349]
[1742269046141,8.0515,124.21,124.2,6.72206349]
[1742269047940,30.11764308,124.22,124.19,6.77978324]
[1742269048245,30.08,124.21,124.19,0.05771975]
[1742269049342,38.1319,124.21,124.19,0.05771975]
[1742269049646,30.08,124.21,124.19,0.05771975]
[1742269050345,8.0521,124.2,124.19,0.05771975]
[1742269050741,38.132,124.21,124.19,0.05771975]
[1742269050943,38.132,124.21,124.2,6.72206349]
[1742269051245,30.08,124.21,124.2,6.72206349]
[1742269052240,38.1315,124.21,124.2,6.72206349]
[1742269053351,30.08,124.21,124.2,6.72206349]
[1742269054548,38.1315,124.21,124.2,6.72206349]
[1742269055448,8.0515,124.21,124.2,6.72206349]
[1742269055850,8.0521,124.2,124.19,0.05771975]
[1742269056048,12.12819254,124.2,124.19,0.05771975]
[1742269057048,8.0517,124.21,124.19,0.05771975]
[1742269057250,30.11764308,124.22,124.19,0.05771975]
[1742269057442,4.07752983,124.21,124.19,0.05771975]
[1742269057749,12.12902983,124.21,124.2,6.72206349]
[1742269058150,8.0521,124.2,124.19,0.05771975]
[1742269058549,12.12928287,124.2,124.19,0.05771975]
[1742269059046,10.79924636,124.2,124.13,277.84]
[1742269059251,6.72206349,124.18,124.13,284.56206349]
[1742269059440,38.40338287,124.19,124.13,277.84]
[1742269059441,10.79924636,124.17,124.13,277.84]
[1742269059645,34.15718287,124.16,124.12,6.72206349]
[1742269059845,4.07503339,124.15,124.11,51.23677209]
[1742269060239,8.0571,124.13,124.11,51.23677209]
[1742269060449,8.0571,124.13,124.12,0.06137776]
[1742269061449,8.11402652,124.14,124.12,6.78344125]
[1742269063048,0.05772652,124.14,124.12,6.78344125]
[1742269063249,0.05772652,124.14,124.13,6.72206349]
[1742269065056,0.05772652,124.14,124.12,6.78344125]
[1742269065256,8.0567,124.13,124.12,6.78344125]
[1742269065452,0.05772652,124.14,124.12,6.78344125]
[1742269065755,0.05772652,124.14,124.13,6.72206349]
[1742269066857,8.11402652,124.14,124.13,6.72206349]
[1742269069461,0.05772652,124.14,124.13,6.72206349]
[1742269073158,8.11372652,124.14,124.13,6.72206349]
[1742269076462,0.05772652,124.14,124.13,6.72206349]
[1742269077053,8.5531,124.19,124.13,6.72206349]
[1742269077253,4.3069,124.19,124.15,6.72206349]
[1742269077452,4.3069,124.19,124.17,6.72206349]
[1742269077657,8.0539,124.18,124.17,6.72206349]
[1742269077856,374.17776349,124.22,124.17,6.72206349]
[1742269078155,8.0526,124.2,124.19,6.72206349]
[1742269078660,30.11763632,124.21,124.19,6.72206349]
[1742269078960,30.11763632,124.21,124.18,0.05392497]
[1742269079355,10.78987866,124.2,124.18,0.05392497]
[1742269079557,6.72206349,124.2,124.18,0.05392497]
[1742269079761,8.0528,124.19,124.18,0.05392497]
[1742269080159,12.12046787,124.19,124.18,0.05392497]
[1742269083463,30.11763632,124.21,124.18,0.05392497]
[1742269083655,4.06950003,124.2,124.18,0.05392497]
[1742269083854,30.08,124.2,124.19,6.72206349]
[1742269084067,0.03763632,124.21,124.19,6.72206349]
[1742269085567,8.08923632,124.21,124.19,6.72206349]
[1742269085767,0.03763632,124.21,124.19,6.72206349]
[1742269085967,8.0526,124.2,124.18,6.77598846]
[1742269086167,0.03763632,124.21,124.18,0.05392497]
[1742269086367,4.10597783,124.21,124.18,0.05392497]
[1742269087968,0.03763632,124.21,124.18,0.05392497]
[1742269088163,4.10575621,124.21,124.18,0.05392497]
[1742269089558,6.72206349,124.19,124.18,0.05392497]
[1742269089764,40.84979929,124.19,124.18,0.05392497]
[1742269090268,48.90259929,124.19,124.18,0.05392497]
[1742269091073,40.84979929,124.19,124.14,277.94]
[1742269091268,8.1580358,124.18,124.13,6.72206349]
[1742269091461,34.1277358,124.17,124.13,6.72206349]
[1742269091666,4.0677358,124.16,124.13,6.72206349]
[1742269092067,8.056,124.14,124.13,6.77934627]
[1742269092271,8.056,124.14,124.13,0.05728278]
[1742269094476,42.18539055,124.14,124.13,0.05728278]
[1742269097578,48.90745404,124.14,124.13,8.278e-05]
[1742269102178,48.90638135,124.14,124.13,8.278e-05]
[1742269103883,42.18431786,124.14,124.13,8.278e-05]
[1742269104278,12.12431786,124.14,124.13,8.278e-05]
[1742269104480,8.056,124.14,124.13,8.278e-05]
[1742269105475,38.136,124.14,124.13,8.278e-05]
[1742269105678,42.20180006,124.14,124.13,8.278e-05]
[1742269105882,48.92386355,124.14,124.13,8.278e-05]
[1742269106382,42.20180006,124.14,124.13,8.278e-05]
[1742269106586,38.136,124.14,124.13,8.278e-05]
[1742269107682,8.056,124.14,124.13,8.278e-05]
[1742269107877,30.06,124.15,124.13,6.72214627]
[1742269108985,0.05419714,124.16,124.13,6.72214627]
[1742269109184,30.11419714,124.16,124.13,8.278e-05]
[1742269109877,8.0558,124.15,124.13,8.278e-05]
[1742269111482,38.16919714,124.16,124.13,8.278e-05]
[1742269111687,30.11419714,124.16,124.13,8.278e-05]
[1742269112687,8.0556,124.15,124.13,8.278e-05]
[1742269112984,0.05419714,124.16,124.13,8.278e-05]
[1742269113193,0.05419714,124.16,124.13,10.51297278]
[1742269113383,0.05419714,124.16,124.13,14.80487278]
[1742269114584,0.05419714,124.16,124.13,44.86487278]
[1742269115083,0.05419714,124.16,124.14,8.0557]
[1742269117487,0.05419714,124.16,124.13,44.86487278]
[1742269117693,0.05419714,124.16,124.13,8.278e-05]
[1742269117994,8.056,124.14,124.13,8.278e-05]
[1742269118586,8.0556,124.15,124.13,8.278e-05]
[1742269119694,8.056,124.14,124.13,8.278e-05]
[1742269123393,12.12186647,124.14,124.13,8.278e-05]
[1742269123592,8.056,124.14,124.13,8.278e-05]
[1742269124597,8.0555,124.15,124.13,8.278e-05]
[1742269125194,8.10909714,124.16,124.13,8.278e-05]
[1742269125795,0.05419714,124.16,124.13,8.278e-05]
[1742269125997,0.05419714,124.16,124.13,10.51297278]
[1742269126189,0.05419714,124.16,124.13,18.56967278]
[1742269126389,0.05419714,124.16,124.13,10.51297278]
[1742269127398,8.10939714,124.16,124.13,10.51297278]
[1742269127700,0.05419714,124.16,124.13,10.51297278]
[1742269128106,0.05419714,124.16,124.13,8.278e-05]
[1742269128700,8.0554,124.15,124.13,8.278e-05]
[1742269130300,8.056,124.14,124.13,8.278e-05]
[1742269131096,8.0557,124.15,124.13,8.278e-05]
[1742269132810,8.056,124.14,124.13,8.278e-05]
[1742269133909,8.0557,124.15,124.13,8.278e-05]
[1742269134611,0.05419714,124.16,124.14,6.73045733]
[1742269134912,0.05419714,124.16,124.15,6.73045733]
[1742269137312,0.05419714,124.16,124.13,48.60679623]
[1742269138311,8.10899714,124.16,124.13,40.55049623]
[1742269139212,0.05419714,124.16,124.13,40.55049623]
[1742269139716,0.05419714,124.16,124.13,8.278e-05]
[1742269140416,8.10949714,124.16,124.13,8.278e-05]
[1742269141115,0.05419714,124.16,124.13,8.278e-05]
[1742269142217,8.10919714,124.16,124.13,8.278e-05]
[1742269142412,0.05419714,124.16,124.13,8.278e-05]
[1742269142918,0.05419714,124.16,124.13,8.05638278]
[1742269146418,8.10889714,124.16,124.13,8.05638278]
[1742269146812,8.10889714,124.16,124.13,8.278e-05]
[1742269147016,0.05419714,124.16,124.13,8.278e-05]
[1742269147219,0.05419714,124.16,124.13,18.56679623]
[1742269147416,0.05419714,124.16,124.13,10.51049623]
[1742269147723,8.10899714,124.16,124.13,10.51049623]
[1742269149026,0.05419714,124.16,124.13,8.278e-05]
[1742269149227,4.08427118,124.15,124.13,8.278e-05]
[1742269149521,12.14111577,124.14,124.13,8.278e-05]
[1742269149828,0.05419714,124.16,124.13,8.278e-05]
[1742269150022,4.08480482,124.15,124.13,8.278e-05]
[1742269150224,8.0555,124.15,124.13,8.278e-05]
[1742269150823,8.056,124.14,124.13,8.278e-05]
[1742269151229,12.14050323,124.14,124.13,8.278e-05]
[1742269151828,12.13820367,124.14,124.13,8.278e-05]
[1742269152525,4.08220367,124.14,124.13,8.278e-05]
[1742269152729,30.04,124.15,124.13,8.278e-05]
[1742269152931,4.08261407,124.14,124.13,8.278e-05]
[1742269153631,0.05419714,124.16,124.13,8.278e-05]
[1742269153823,4.08258972,124.15,124.13,8.278e-05]
[1742269154131,12.13858972,124.14,124.13,8.278e-05]
[1742269155524,8.056,124.14,124.13,8.278e-05]
[1742269155728,12.13694063,124.14,124.13,8.278e-05]
[1742269157238,48.90775543,124.14,124.13,8.278e-05]
[1742269157532,8.0596,124.09,124.07,277.94]
[1742269157727,8.0596,124.09,124.06,11.12867715]
[1742269157728,4.0777873,124.08,124.06,11.12867715]
[1742269157929,40.8486021,124.07,124.06,4.55197715]
[1742269158128,48.9092021,124.07,124.06,4.55197715]
[1742269158328,42.1783873,124.07,124.06,4.55197715]
[1742269158533,34.1177873,124.07,124.06,4.55197715]
[1742269158934,34.1177873,124.07,124.06,37.9380086]
[1742269159230,34.10904077,124.07,124.06,37.9380086]
[1742269159432,42.16950214,124.07,124.06,37.9380086]
[1742269159934,34.10890214,124.07,124.06,37.9380086]
[1742269160432,42.16950214,124.07,124.06,37.9380086]
[1742269160633,48.90031694,124.07,124.06,37.9380086]
[1742269160829,40.83971694,124.07,124.06,37.9380086]
[1742269161232,34.10890214,124.07,124.06,37.9380086]
[1742269162236,42.16950214,124.07,124.06,37.9380086]
[1742269162835,34.10890214,124.07,124.06,37.9380086]
[1742269163031,30.04,124.07,124.06,37.9380086]
[1742269163232,30.04,124.07,124.05,89.080614]
[1742269163233,30.04,124.07,124.05,0.05119679]
[1742269165729,0.05730659,124.08,124.05,0.05119679]
[1742269167034,8.11730659,124.08,124.05,0.05119679]
[1742269167229,0.05730659,124.08,124.05,0.05119679]
[1742269167734,8.11730659,124.08,124.05,0.05119679]